[Event "Gibraltar Masters 18th"]
[Site "Gibraltar"]
[Date "2020.01.23"]
[Round "3.3"]
[White "Kadric, Denis"]
[Black "Alekseenko, Kirill"]
[Result "1/2-1/2"]
[ECO "B23"]
[WhiteElo "2585"]
[BlackElo "2704"]
[PlyCount "149"]
[EventDate "2020.01.21"]
[EventType "swiss"]
[EventRounds "10"]
[EventCountry "GGB"]
[SourceTitle "BritBase"]
[Source "John Saunders"]
[SourceDate "2021.06.05"]
[SourceVersion "1"]
[SourceVersionDate "2021.06.05"]
[SourceQuality "1"]
[TimeControl "40/100:0"]
[WhiteClock "0:00:53"]
[BlackClock "0:04:49"]

1. e4 {[%emt 0:00:18]} c5 {[%emt 0:00:00]} 2. Nc3 {[%emt 0:00:00]} d6 {[%emt 0:
00:00]} 3. f4 {[%emt 0:00:00]} g6 {[%emt 0:00:00]} 4. Nf3 {[%emt 0:00:00]} Bg7
{[%emt 0:00:00]} 5. Bb5+ {[%emt 0:00:00]} Bd7 {[%emt 0:00:00]} 6. Bc4 {[%emt 0:
00:00]} Nc6 {[%emt 0:00:00]} 7. d3 {[%emt 0:00:00]} e6 {[%emt 0:00:00]} 8. f5 {
[%emt 0:00:00]} Nf6 {[%emt 0:00:00]} 9. fxg6 {[%emt 0:00:00]} hxg6 {[%emt 0:00:
00]} 10. Bf4 {[%emt 0:00:00]} Qb8 {[%emt 0:00:00]} 11. Nb5 {[%emt 0:00:00]} Bf8
{[%emt 0:00:00]} 12. a4 {[%emt 0:00:00]} a6 {[%emt 0:00:00]} 13. Nc3 {[%emt 0:
00:00]} Bg7 {[%emt 0:00:00]} 14. h3 {[%emt 0:00:00]} Ng4 {[%emt 0:00:00]} 15.
O-O {[%emt 0:00:00]} Nge5 {[%emt 0:00:00]} 16. Bg5 {[%emt 0:03:41]} Qc7 17. Qd2
Nxf3+ 18. Rxf3 Qb6 19. Nd1 f5 20. Rf1 Ne5 21. a5 Qc7 22. Nc3 Nf7 23. Rae1 Bd4+
24. Kh1 Be5 25. exf5 gxf5 26. Rxf5 exf5 27. Nd5 Qc6 28. Nb6 Rb8 29. Bd5 {
[%emt 0:00:00]} Qc7 {[%emt 0:00:00]} 30. Bf6 {[%emt 0:00:00]} Rg8 {[%emt 0:00:
00]} 31. Nc4 {[%emt 0:00:00]} Bc6 {[%emt 0:00:10]} 32. Bxe5 {[%emt 0:00:00]}
dxe5 {[%emt 0:00:53]} 33. Bxf7+ {[%emt 0:00:00]} Qxf7 {[%emt 0:00:06]} 34. Nd6+
{[%emt 0:00:00]} Kf8 {[%emt 0:00:00]} 35. Nxf7 {[%emt 0:00:00]} Rxg2 {[%emt 0:
00:00]} 36. Qxg2 {[%emt 0:00:00]} Bxg2+ {[%emt 0:00:51]} 37. Kxg2 {[%emt 0:00:
00]} Kxf7 {[%emt 0:00:00]} 38. Rxe5 {[%emt 0:00:00]} Kf6 {[%emt 0:00:00]} 39.
Rxc5 {[%emt 0:00:00]} Re8 {[%emt 0:00:00]} 40. Kf3 {[%emt 0:00:00]} Re1 {
[%emt 0:00:00]} 41. Rc7 {[%emt 0:00:00]} Rf1+ {[%emt 0:00:00]} 42. Ke2 {
[%emt 0:00:00]} Rh1 {[%emt 0:00:00]} 43. Rxb7 {[%emt 0:00:00]} Rh2+ {[%emt 0:
00:00]} 44. Kd1 {[%emt 0:00:00]} f4 {[%emt 0:00:00]} 45. Rb8 {[%emt 0:00:00]}
Rxh3 {[%emt 0:00:00]} 46. b4 {[%emt 0:00:00]} Ke5 {[%emt 0:00:00]} 47. Re8+ {
[%emt 0:00:00]} Kf5 {[%emt 0:00:00]} 48. Kd2 {[%emt 0:00:00]} Rh2+ {[%emt 0:00:
00]} 49. Kc3 {[%emt 0:00:00]} f3 {[%emt 0:00:00]} 50. Rf8+ {[%emt 0:00:00]} Kg4
{[%emt 0:00:00]} 51. b5 {[%emt 0:00:00]} axb5 {[%emt 0:00:00]} 52. a6 {[%emt 0:
00:00]} Rh7 {[%emt 0:00:00]} 53. Kb4 {[%emt 0:00:00]} Kg3 {[%emt 0:00:00]} 54.
Kxb5 {[%emt 0:00:00]} f2 {[%emt 0:00:00]} 55. c4 {[%emt 0:00:00]} Rh8 {[%emt 0:
00:00]} 56. Rf6 {[%emt 0:00:00]} Rb8+ {[%emt 0:00:00]} 57. Kc5 {[%emt 0:00:00]}
Rb3 {[%emt 0:00:00]} 58. d4 {[%emt 0:00:00]} Ra3 {[%emt 0:00:00]} 59. d5 {
[%emt 0:00:00]} Rf3 {[%emt 0:00:00]} 60. Rxf3+ {[%emt 0:00:00]} Kxf3 {[%emt 0:
00:00]} 61. a7 {[%emt 0:00:00]} f1=Q {[%emt 0:00:00]} 62. a8=Q {[%emt 0:00:00]}
Qg1+ {[%emt 0:00:00]} 63. Kc6 {[%emt 0:00:00]} Qg6+ {[%emt 0:00:00]} 64. Kb7 {
[%emt 0:00:00]} Qg7+ {[%emt 0:00:00]} 65. Kb6 {[%emt 0:00:00]} Qg1+ {[%emt 0:
00:00]} 66. c5 {[%emt 0:00:00]} Qb1+ {[%emt 0:00:00]} 67. Kc6 {[%emt 0:00:00]}
Qg6+ {[%emt 0:00:00]} 68. Kb7 {[%emt 0:00:00]} Qh7+ {[%emt 0:00:00]} 69. Kb8 {
[%emt 0:00:00]} Qh8+ {[%emt 0:00:00]} 70. Ka7 {[%emt 0:00:00]} Qa1+ {[%emt 0:
00:00]} 71. Kb7 {[%emt 0:00:00]} Qb1+ {[%emt 0:00:00]} 72. Kc8 {[%emt 0:00:00]}
Qf5+ {[%emt 0:00:00]} 73. Kb7 {[%emt 0:00:00]} Qb1+ {[%emt 0:00:00]} 74. Ka7 {
[%emt 0:00:00]} Qa1+ {[%emt 0:00:00]} 75. Kb7 {[%emt 0:00:00]} 1/2-1/2

[Event "Gibraltar Masters 18th"]
[Site "Gibraltar"]
[Date "2020.01.23"]
[Round "3.4"]
[White "Ivanchuk, Vassily"]
[Black "Peralta, Fernando"]
[Result "1/2-1/2"]
[ECO "C11"]
[WhiteElo "2698"]
[BlackElo "2574"]
[PlyCount "79"]
[EventDate "2020.01.21"]
[EventType "swiss"]
[EventRounds "10"]
[EventCountry "GGB"]
[SourceTitle "BritBase"]
[Source "John Saunders"]
[SourceDate "2021.06.05"]
[SourceVersion "1"]
[SourceVersionDate "2021.06.05"]
[SourceQuality "1"]
[TimeControl "40/100:0"]
[WhiteClock "1:03:50"]
[BlackClock "0:35:58"]

1. e4 {[%emt 0:00:00]} e6 {[%emt 0:00:00]} 2. d4 {[%emt 0:00:00]} d5 {[%emt 0:
00:00]} 3. Nc3 {[%emt 0:00:00]} Nf6 {[%emt 0:00:00]} 4. e5 {[%emt 0:00:00]}
Nfd7 {[%emt 0:00:00]} 5. f4 {[%emt 0:00:00]} c5 {[%emt 0:00:00]} 6. Nf3 {
[%emt 0:00:00]} Nc6 {[%emt 0:00:00]} 7. Be3 {[%emt 0:00:00]} a6 {[%emt 0:00:00]
} 8. Qd2 {[%emt 0:00:00]} b5 {[%emt 0:00:00]} 9. a3 {[%emt 0:00:00]} Qa5 {
[%emt 0:00:00]} 10. Rd1 {[%emt 0:00:00]} Rb8 {[%emt 0:00:00]} 11. Ne2 {[%emt 0:
00:00]} Qxd2+ {[%emt 0:00:00]} 12. Kxd2 {[%emt 0:00:00]} Be7 {[%emt 0:00:00]}
13. g3 {[%emt 0:00:00]} O-O {[%emt 0:00:00]} 14. Bg2 {[%emt 0:00:00]} a5 {
[%emt 0:00:00]} 15. Ra1 {[%emt 0:00:00]} Ba6 {[%emt 0:00:00]} 16. Rhb1 {
[%emt 0:00:00]} Rfc8 {[%emt 0:00:00]} 17. Bf1 {[%emt 0:00:00]} b4 {[%emt 0:00:
00]} 18. axb4 {[%emt 0:00:00]} cxb4 {[%emt 0:00:00]} 19. b3 {[%emt 0:00:00]}
Nb6 {[%emt 0:00:00]} 20. Ke1 {[%emt 0:00:00]} a4 {[%emt 0:00:00]} 21. Nc1 {
[%emt 0:00:00]} Bxf1 {[%emt 0:00:00]} 22. Kxf1 {[%emt 0:00:00]} a3 {[%emt 0:00:
00]} 23. Na2 {[%emt 0:00:00]} Na8 {[%emt 0:00:00]} 24. Ke2 {[%emt 0:00:00]} Nc7
{[%emt 0:00:00]} 25. Kd3 {[%emt 0:00:00]} Nb5 {[%emt 0:00:00]} 26. Bd2 {
[%emt 0:00:00]} f6 {[%emt 0:09:18]} 27. exf6 Bxf6 28. Be3 Nd6 29. Rf1 Ne4 30.
Rae1 Na7 31. Bd2 Nxd2 32. Kxd2 Nb5 {[%emt 0:00:00]} 33. Rxe6 {[%emt 0:00:00]}
Bxd4 {[%emt 0:00:00]} 34. Ra6 {[%emt 0:00:00]} Bb2 {[%emt 0:00:00]} 35. Nc1 {
[%emt 0:00:00]} Nc3 {[%emt 0:00:00]} 36. Nd3 {[%emt 0:00:00]} Ne4+ {[%emt 0:00:
00]} 37. Kd1 {[%emt 0:00:00]} Nc3+ {[%emt 0:00:00]} 38. Kd2 {[%emt 0:00:00]}
Ne4+ {[%emt 0:00:00]} 39. Kd1 {[%emt 0:00:00]} Nc3+ {[%emt 0:00:00]} 40. Kd2 {
[%emt 0:00:00]} 1/2-1/2

[Event "Gibraltar Masters 18th"]
[Site "Gibraltar"]
[Date "2020.01.23"]
[Round "3.5"]
[White "Yuffa, Daniil"]
[Black "Cheparinov, Ivan"]
[Result "0-1"]
[ECO "D90"]
[WhiteElo "2566"]
[BlackElo "2686"]
[PlyCount "46"]
[EventDate "2020.01.21"]
[EventType "swiss"]
[EventRounds "10"]
[EventCountry "GGB"]
[SourceTitle "BritBase"]
[Source "John Saunders"]
[SourceDate "2021.06.05"]
[SourceVersion "1"]
[SourceVersionDate "2021.06.05"]
[SourceQuality "1"]
[TimeControl "40/100:0"]
[WhiteClock "0:42:00"]
[BlackClock "0:51:18"]

1. d4 {[%emt 0:00:00]} Nf6 {[%emt 0:00:00]} 2. c4 {[%emt 0:00:00]} g6 {[%emt 0:
00:00]} 3. Nc3 {[%emt 0:00:00]} d5 {[%emt 0:00:00]} 4. Nf3 {[%emt 0:00:00]} Bg7
{[%emt 0:00:00]} 5. h4 {[%emt 0:00:00]} dxc4 {[%emt 0:00:00]} 6. e4 {[%emt 0:
00:00]} c5 {[%emt 0:00:00]} 7. d5 {[%emt 0:00:00]} b5 {[%emt 0:00:00]} 8. h5 {
[%emt 0:00:00]} O-O {[%emt 0:00:00]} 9. hxg6 {[%emt 0:00:00]} fxg6 {[%emt 0:00:
00]} 10. Rh4 {[%emt 0:00:00]} Ng4 {[%emt 0:00:00]} 11. d6 {[%emt 0:00:00]} Be6
{[%emt 0:00:00]} 12. Rxg4 {[%emt 0:00:00]} Bxg4 {[%emt 0:00:00]} 13. Qd5+ {
[%emt 0:00:00]} e6 {[%emt 0:00:00]} 14. Qxa8 {[%emt 0:00:00]} Qd7 {[%emt 0:00:
00]} 15. Nh2 {[%emt 0:00:00]} Bh5 {[%emt 0:00:00]} 16. g4 {[%emt 0:00:00]} Nc6
{[%emt 0:00:00]} 17. Qxf8+ {[%emt 0:00:00]} Kxf8 {[%emt 0:00:00]} 18. Bf4 {
[%emt 0:00:00]} g5 {[%emt 0:00:00]} 19. Be3 {[%emt 0:00:00]} Nd4 {[%emt 0:00:
00]} 20. O-O-O {[%emt 0:00:00]} Qxd6 {[%emt 0:00:00]} 21. gxh5 {[%emt 0:00:00]}
Qxh2 {[%emt 0:00:00]} 22. Bxd4 {[%emt 0:00:00]} cxd4 {[%emt 0:00:00]} 23. Nxb5
{[%emt 0:00:00]} Qf4+ {[%emt 0:00:00]} 0-1

[Event "Gibraltar Masters 18th"]
[Site "Gibraltar"]
[Date "2020.01.23"]
[Round "3.6"]
[White "Ibarra Jerez, Jose Carlos"]
[Black "Maghsoodloo, Parham"]
[Result "1/2-1/2"]
[ECO "A07"]
[WhiteElo "2548"]
[BlackElo "2674"]
[PlyCount "30"]
[EventDate "2020.01.21"]
[EventType "swiss"]
[EventRounds "10"]
[EventCountry "GGB"]
[SourceTitle "BritBase"]
[Source "John Saunders"]
[SourceDate "2021.06.05"]
[SourceVersion "1"]
[SourceVersionDate "2021.06.05"]
[SourceQuality "1"]
[TimeControl "40/100:0"]
[WhiteClock "1:31:06"]
[BlackClock "1:34:19"]

1. Nf3 {[%emt 0:00:00]} d5 {[%emt 0:00:00]} 2. g3 {[%emt 0:00:00]} g6 {[%emt 0:
00:00]} 3. Bg2 {[%emt 0:00:00]} Bg7 {[%emt 0:00:00]} 4. c4 {[%emt 0:00:00]}
dxc4 {[%emt 0:00:00]} 5. Qa4+ {[%emt 0:00:00]} Nc6 {[%emt 0:00:00]} 6. O-O {
[%emt 0:00:00]} e5 {[%emt 0:00:00]} 7. Nxe5 {[%emt 0:00:00]} Bxe5 {[%emt 0:00:
00]} 8. Bxc6+ {[%emt 0:00:00]} bxc6 {[%emt 0:00:00]} 9. Qxc6+ {[%emt 0:00:00]}
Bd7 {[%emt 0:00:00]} 10. Qe4 {[%emt 0:00:00]} f6 {[%emt 0:00:00]} 11. f4 {
[%emt 0:00:00]} Bf5 {[%emt 0:00:00]} 12. Qc6+ {[%emt 0:00:00]} Bd7 {[%emt 0:00:
00]} 13. Qe4 {[%emt 0:00:00]} Bf5 {[%emt 0:00:00]} 14. Qc6+ {[%emt 0:00:00]}
Bd7 {[%emt 0:00:00]} 15. Qe4 {[%emt 0:00:00]} Bf5 {[%emt 0:00:08]} 1/2-1/2

[Event "Gibraltar Masters 18th"]
[Site "Gibraltar"]
[Date "2020.01.23"]
[Round "3.7"]
[White "Esipenko, Andrey"]
[Black "Antipov, Mikhail Al."]
[Result "1/2-1/2"]
[ECO "D85"]
[WhiteElo "2654"]
[BlackElo "2562"]
[PlyCount "70"]
[EventDate "2020.01.21"]
[EventType "swiss"]
[EventRounds "10"]
[EventCountry "GGB"]
[SourceTitle "BritBase"]
[Source "John Saunders"]
[SourceDate "2021.06.05"]
[SourceVersion "1"]
[SourceVersionDate "2021.06.05"]
[SourceQuality "1"]
[TimeControl "40/100:0"]
[WhiteClock "0:53:30"]
[BlackClock "1:07:24"]

1. d4 {[%emt 0:00:00]} Nf6 {[%emt 0:00:00]} 2. c4 {[%emt 0:00:00]} g6 {[%emt 0:
00:00]} 3. Nc3 {[%emt 0:00:00]} d5 {[%emt 0:00:00]} 4. cxd5 {[%emt 0:00:00]}
Nxd5 {[%emt 0:00:00]} 5. e4 {[%emt 0:00:00]} Nxc3 {[%emt 0:00:00]} 6. bxc3 {
[%emt 0:00:00]} Bg7 {[%emt 0:00:00]} 7. Nf3 {[%emt 0:00:00]} c5 {[%emt 0:00:00]
} 8. Be3 {[%emt 0:00:00]} Qa5 {[%emt 0:00:00]} 9. Qd2 {[%emt 0:00:00]} Nc6 {
[%emt 0:00:00]} 10. Rb1 {[%emt 0:00:00]} a6 {[%emt 0:00:00]} 11. Rc1 {[%emt 0:
00:00]} cxd4 {[%emt 0:00:00]} 12. cxd4 {[%emt 0:00:00]} Qxd2+ {[%emt 0:00:00]}
13. Kxd2 {[%emt 0:00:00]} e6 {[%emt 0:00:00]} 14. h4 {[%emt 0:00:00]} O-O {
[%emt 0:00:00]} 15. Bd3 {[%emt 0:00:00]} h6 {[%emt 0:00:00]} 16. e5 {[%emt 0:
00:00]} Rd8 {[%emt 0:00:00]} 17. h5 {[%emt 0:00:00]} g5 {[%emt 0:00:00]} 18.
Nxg5 {[%emt 0:00:00]} Nxd4 {[%emt 0:00:00]} 19. Bh7+ {[%emt 0:00:00]} Kf8 {
[%emt 0:00:00]} 20. Nxf7 {[%emt 0:00:00]} Kxf7 {[%emt 0:00:00]} 21. Rc7+ {
[%emt 0:00:00]} Kf8 {[%emt 0:00:00]} 22. Rd1 {[%emt 0:00:00]} Nf5+ {[%emt 0:00:
00]} 23. Ke2 {[%emt 0:00:00]} Rxd1 {[%emt 0:00:00]} 24. Bc5+ {[%emt 0:00:00]}
Ke8 {[%emt 0:00:00]} 25. Kxd1 {[%emt 0:00:00]} Bd7 {[%emt 0:00:00]} 26. Bg6+ {
[%emt 0:00:00]} Kd8 {[%emt 0:00:00]} 27. Bb6 {[%emt 0:00:00]} Rc8 {[%emt 0:00:
00]} 28. Rxb7+ {[%emt 0:00:00]} Ke7 {[%emt 0:00:00]} 29. f4 {[%emt 0:00:00]}
Rc4 {[%emt 0:00:00]} 30. g4 {[%emt 0:00:00]} Nh4 {[%emt 0:01:18]} 31. Bf2 Nxg6
32. hxg6 Rxf4 33. Ra7 Kd8 34. Bb6+ Ke7 35. Bc5+ Kd8 {[%emt 0:00:00]} 1/2-1/2

[Event "Gibraltar Masters 18th"]
[Site "Gibraltar"]
[Date "2020.01.23"]
[Round "3.8"]
[White "Kaidanov, Gregory"]
[Black "Lagarde, Maxime"]
[Result "1/2-1/2"]
[ECO "A81"]
[WhiteElo "2546"]
[BlackElo "2651"]
[PlyCount "68"]
[EventDate "2020.01.21"]
[EventType "swiss"]
[EventRounds "10"]
[EventCountry "GGB"]
[SourceTitle "BritBase"]
[Source "John Saunders"]
[SourceDate "2021.06.05"]
[SourceVersion "1"]
[SourceVersionDate "2021.06.05"]
[SourceQuality "1"]
[TimeControl "40/100:0"]
[WhiteClock "0:45:02"]
[BlackClock "0:40:22"]

1. Nf3 {[%emt 0:00:00]} f5 {[%emt 0:00:00]} 2. g3 {[%emt 0:00:00]} Nf6 {
[%emt 0:00:00]} 3. Bg2 {[%emt 0:00:00]} g6 {[%emt 0:00:00]} 4. O-O {[%emt 0:00:
00]} Bg7 {[%emt 0:00:00]} 5. d4 {[%emt 0:00:00]} O-O {[%emt 0:00:00]} 6. b3 {
[%emt 0:00:00]} e6 {[%emt 0:00:00]} 7. Bb2 {[%emt 0:00:00]} b6 {[%emt 0:00:00]}
8. Ne5 {[%emt 0:00:00]} d5 {[%emt 0:00:00]} 9. c4 {[%emt 0:00:00]} Bb7 {
[%emt 0:00:00]} 10. Nd2 {[%emt 0:00:00]} Nbd7 {[%emt 0:00:00]} 11. Ndf3 {
[%emt 0:00:00]} Ne4 {[%emt 0:00:00]} 12. Nd3 {[%emt 0:00:00]} dxc4 {[%emt 0:00:
00]} 13. bxc4 {[%emt 0:00:00]} c5 {[%emt 0:00:00]} 14. e3 {[%emt 0:00:00]} Qc7
{[%emt 0:00:00]} 15. Rc1 {[%emt 0:00:00]} g5 {[%emt 0:00:00]} 16. Qe2 {[%emt 0:
00:00]} Rae8 {[%emt 0:00:00]} 17. Rfd1 {[%emt 0:00:00]} g4 {[%emt 0:00:00]} 18.
Nh4 {[%emt 0:00:00]} Ng5 {[%emt 0:00:00]} 19. f3 {[%emt 0:10:22]} cxd4 20. fxg4
Bxg2 21. Qxg2 fxg4 22. exd4 e5 23. dxe5 Nxe5 24. Qd5+ Kh8 25. Bxe5 Bxe5 26. Rf1
Rxf1+ 27. Rxf1 Qd6 28. Nf5 Nf3+ 29. Kg2 Qf6 30. Nh4 Rd8 31. Qe4 Rf8 32. Qd5 Rd8
33. Qe4 Rf8 34. Qd5 {[%emt 0:00:00]} Rd8 {[%emt 0:00:00]} 1/2-1/2

[Event "Gibraltar Masters 18th"]
[Site "Gibraltar"]
[Date "2020.01.23"]
[Round "3.9"]
[White "Werle, Jan"]
[Black "Donchenko, Alexander"]
[Result "1/2-1/2"]
[ECO "E15"]
[WhiteElo "2545"]
[BlackElo "2647"]
[PlyCount "41"]
[EventDate "2020.01.21"]
[EventType "swiss"]
[EventRounds "10"]
[EventCountry "GGB"]
[SourceTitle "BritBase"]
[Source "John Saunders"]
[SourceDate "2021.06.05"]
[SourceVersion "1"]
[SourceVersionDate "2021.06.05"]
[SourceQuality "1"]
[TimeControl "40/100:0"]
[WhiteClock "1:10:28"]
[BlackClock "0:56:25"]

1. d4 {[%emt 0:00:00]} Nf6 {[%emt 0:00:00]} 2. c4 {[%emt 0:00:00]} e6 {[%emt 0:
00:00]} 3. Nf3 {[%emt 0:00:00]} d5 {[%emt 0:00:00]} 4. g3 {[%emt 0:00:00]} Bb4+
{[%emt 0:00:00]} 5. Bd2 {[%emt 0:00:00]} Be7 {[%emt 0:00:00]} 6. Bg2 {[%emt 0:
00:00]} O-O {[%emt 0:00:00]} 7. O-O {[%emt 0:00:00]} Nbd7 {[%emt 0:00:00]} 8.
Qc2 {[%emt 0:00:00]} c6 {[%emt 0:00:00]} 9. Rd1 {[%emt 0:00:00]} b6 {[%emt 0:
00:00]} 10. Bf4 {[%emt 0:00:00]} Ba6 {[%emt 0:00:00]} 11. b3 {[%emt 0:00:00]}
Rc8 {[%emt 0:00:00]} 12. Nc3 {[%emt 0:00:00]} dxc4 {[%emt 0:00:00]} 13. e4 {
[%emt 0:00:00]} b5 {[%emt 0:00:00]} 14. bxc4 {[%emt 0:00:00]} bxc4 {[%emt 0:00:
00]} 15. Qa4 {[%emt 0:00:00]} Bb5 {[%emt 0:00:00]} 16. Qc2 {[%emt 0:00:00]} Ba6
{[%emt 0:00:00]} 17. h3 {[%emt 0:00:00]} Qa5 {[%emt 0:00:00]} 18. Bd2 {[%emt 0:
00:00]} Qc7 {[%emt 0:00:00]} 19. Bf4 {[%emt 0:00:00]} Qa5 {[%emt 0:00:00]} 20.
Bd2 {[%emt 0:00:00]} Qc7 {[%emt 0:00:00]} 21. Bf4 {[%emt 0:00:00]} 1/2-1/2

[Event "Gibraltar Masters 18th"]
[Site "Gibraltar"]
[Date "2020.01.23"]
[Round "3.10"]
[White "Paravyan, David"]
[Black "Moroni, Luca Jr"]
[Result "1/2-1/2"]
[ECO "D36"]
[WhiteElo "2629"]
[BlackElo "2532"]
[PlyCount "97"]
[EventDate "2020.01.21"]
[EventType "swiss"]
[EventRounds "10"]
[EventCountry "GGB"]
[SourceTitle "BritBase"]
[Source "John Saunders"]
[SourceDate "2021.06.05"]
[SourceVersion "1"]
[SourceVersionDate "2021.06.05"]
[SourceQuality "1"]
[TimeControl "40/100:0"]
[WhiteClock "0:37:11"]
[BlackClock "1:12:41"]

1. c4 {[%emt 0:00:00]} e6 {[%emt 0:00:00]} 2. Nc3 {[%emt 0:00:00]} d5 {[%emt 0:
00:00]} 3. d4 {[%emt 0:00:00]} Nf6 {[%emt 0:00:00]} 4. Bg5 {[%emt 0:00:00]} Be7
{[%emt 0:00:00]} 5. Nf3 {[%emt 0:00:00]} O-O {[%emt 0:00:00]} 6. Qc2 {[%emt 0:
00:00]} Nbd7 {[%emt 0:00:00]} 7. cxd5 {[%emt 0:00:00]} exd5 {[%emt 0:00:00]} 8.
e3 {[%emt 0:00:00]} c6 {[%emt 0:00:00]} 9. Bd3 {[%emt 0:00:00]} Re8 {[%emt 0:
00:00]} 10. O-O {[%emt 0:00:00]} Nf8 {[%emt 0:00:00]} 11. h3 {[%emt 0:00:00]}
Nh5 {[%emt 0:00:00]} 12. Bxe7 {[%emt 0:00:00]} Qxe7 {[%emt 0:00:00]} 13. Rae1 {
[%emt 0:00:00]} Ng6 {[%emt 0:00:00]} 14. e4 {[%emt 0:11:16]} dxe4 15. Bxe4 Be6
16. d5 cxd5 17. Nxd5 Qd7 18. Ne5 Qd8 19. Nxg6 hxg6 20. Nc7 Rc8 21. Nxe6 Rxe6
22. Qb1 b6 23. Bb7 Rxe1 24. Rxe1 Rc7 25. Bf3 Re7 26. g3 Nf6 27. Rxe7 Qxe7 28.
Qc2 Qd7 29. Kg2 a5 30. Qc3 Qd8 31. Qe5 Kh7 32. Qf4 Qd7 33. a3 Qd8 34. h4 Qd7
35. Qc4 Kg8 36. Qc3 Kh7 37. Kf1 Qb5+ 38. Kg2 Qd7 39. Qb3 Qc7 40. Qb5 Qd6 41.
Qc4 Qd7 42. b4 axb4 43. axb4 Kg8 44. Qa6 Qd4 45. Qa8+ Kh7 46. b5 Qc5 47. Qc6
Qd4 48. Qb7 Kg8 49. Qa8+ {[%emt 0:00:00]} 1/2-1/2

[Event "Gibraltar Masters 18th"]
[Site "Gibraltar"]
[Date "2020.01.23"]
[Round "3.11"]
[White "Durarbayli, Vasif"]
[Black "Kotronias, Vasilios"]
[Result "1-0"]
[ECO "B56"]
[WhiteElo "2625"]
[BlackElo "2526"]
[PlyCount "107"]
[EventDate "2020.01.21"]
[EventType "swiss"]
[EventRounds "10"]
[EventCountry "GGB"]
[SourceTitle "BritBase"]
[Source "John Saunders"]
[SourceDate "2021.06.05"]
[SourceVersion "1"]
[SourceVersionDate "2021.06.05"]
[SourceQuality "1"]
[TimeControl "40/100:0"]
[WhiteClock "1:08:24"]
[BlackClock "0:46:08"]

1. e4 {[%emt 0:00:00]} c5 {[%emt 0:00:00]} 2. Nf3 {[%emt 0:00:00]} d6 {[%emt 0:
00:00]} 3. d4 {[%emt 0:00:00]} cxd4 {[%emt 0:00:00]} 4. Nxd4 {[%emt 0:00:00]}
Nf6 {[%emt 0:00:00]} 5. Nc3 {[%emt 0:00:00]} Nc6 {[%emt 0:00:00]} 6. f3 {
[%emt 0:00:00]} e5 {[%emt 0:00:00]} 7. Nb3 {[%emt 0:00:00]} Be7 {[%emt 0:00:00]
} 8. Be3 {[%emt 0:00:00]} O-O {[%emt 0:00:00]} 9. Qd2 {[%emt 0:00:00]} a5 {
[%emt 0:00:00]} 10. Bb5 {[%emt 0:00:00]} Be6 {[%emt 0:00:00]} 11. O-O-O {
[%emt 0:00:00]} Nb4 {[%emt 0:00:00]} 12. Kb1 {[%emt 0:00:00]} d5 {[%emt 0:00:
00]} 13. exd5 {[%emt 0:00:00]} Nbxd5 {[%emt 0:00:00]} 14. Nxd5 {[%emt 0:00:00]}
Nxd5 {[%emt 0:00:00]} 15. Bc4 {[%emt 0:00:00]} Nxe3 {[%emt 0:00:00]} 16. Qxe3 {
[%emt 0:00:00]} Qc8 {[%emt 0:00:00]} 17. Bxe6 {[%emt 0:00:00]} Qxe6 {[%emt 0:
00:00]} 18. Nc1 {[%emt 0:00:00]} Rad8 {[%emt 0:00:00]} 19. Rd3 {[%emt 0:00:00]}
b6 {[%emt 0:00:00]} 20. Re1 {[%emt 0:00:00]} Bh4 {[%emt 0:00:00]} 21. Red1 {
[%emt 0:00:00]} f5 {[%emt 0:00:00]} 22. Ne2 {[%emt 0:00:00]} Rxd3 {[%emt 0:00:
00]} 23. Rxd3 {[%emt 0:00:00]} e4 {[%emt 0:00:00]} 24. Rd1 {[%emt 0:00:00]} Re8
{[%emt 0:00:00]} 25. Nc3 {[%emt 0:00:00]} exf3 {[%emt 0:00:00]} 26. Qxf3 {
[%emt 0:00:00]} h6 {[%emt 0:00:00]} 27. a3 {[%emt 0:00:00]} Kh7 {[%emt 0:00:00]
} 28. Nd5 {[%emt 0:05:33]} Bd8 29. Nf4 Qf7 30. g3 b5 31. Qd5 Qxd5 32. Rxd5 g5
33. Rd7+ Kg8 34. Nd5 Rf8 35. b4 axb4 36. axb4 h5 37. c3 h4 38. Kc2 h3 39. Kd3
f4 40. gxf4 g4 41. Ra7 Bh4 42. Ke4 Bf2 43. Ra1 Kf7 44. f5 Re8+ 45. Kf4 Rd8 46.
Ne3 g3 47. Ng4 Rd2 48. hxg3 Bb6 49. Rh1 Bc7+ 50. Ke4 Re2+ 51. Kd3 Rg2 52. Rxh3
Bxg3 53. Rh7+ Kf8 54. Nf6 {[%emt 0:00:00]} 1-0

[Event "Gibraltar Masters 18th"]
[Site "Gibraltar"]
[Date "2020.01.23"]
[Round "3.12"]
[White "Chigaev, Maksim"]
[Black "Hjartarson, Johann"]
[Result "1-0"]
[ECO "C54"]
[WhiteElo "2616"]
[BlackElo "2524"]
[PlyCount "51"]
[EventDate "2020.01.21"]
[EventType "swiss"]
[EventRounds "10"]
[EventCountry "GGB"]
[SourceTitle "BritBase"]
[Source "John Saunders"]
[SourceDate "2021.06.05"]
[SourceVersion "1"]
[SourceVersionDate "2021.06.05"]
[SourceQuality "1"]
[TimeControl "40/100:0"]
[WhiteClock "0:59:50"]
[BlackClock "0:47:07"]

1. e4 {[%emt 0:00:00]} e5 {[%emt 0:00:00]} 2. Nf3 {[%emt 0:00:00]} Nc6 {
[%emt 0:00:00]} 3. Bc4 {[%emt 0:00:00]} Bc5 {[%emt 0:00:00]} 4. c3 {[%emt 0:00:
00]} Nf6 {[%emt 0:00:00]} 5. d3 {[%emt 0:00:00]} d6 {[%emt 0:00:00]} 6. O-O {
[%emt 0:00:00]} O-O {[%emt 0:00:00]} 7. Re1 {[%emt 0:00:00]} h6 {[%emt 0:00:00]
} 8. Nbd2 {[%emt 0:00:00]} a6 {[%emt 0:00:00]} 9. a4 {[%emt 0:00:00]} Ba7 {
[%emt 0:00:00]} 10. h3 {[%emt 0:00:00]} Ne7 {[%emt 0:00:00]} 11. Nf1 {[%emt 0:
00:00]} Ng6 {[%emt 0:00:00]} 12. Ng3 {[%emt 0:00:00]} Nh7 {[%emt 0:00:00]} 13.
d4 {[%emt 0:00:00]} Qf6 {[%emt 0:00:00]} 14. Be3 {[%emt 0:00:00]} Ng5 {[%emt 0:
00:00]} 15. Nh2 {[%emt 0:00:00]} Nf4 {[%emt 0:00:00]} 16. dxe5 {[%emt 0:00:00]}
dxe5 {[%emt 0:00:00]} 17. Ng4 {[%emt 0:00:00]} Nfxh3+ {[%emt 0:00:00]} 18. gxh3
{[%emt 0:00:00]} Nxh3+ {[%emt 0:00:00]} 19. Kg2 {[%emt 0:00:00]} Qh4 {[%emt 0:
00:00]} 20. Nxe5 {[%emt 0:13:25]} Nf4+ 21. Bxf4 Bh3+ 22. Kf3 Rae8 23. Rh1 g5
24. Rxh3 Qxh3 25. Qh1 Qxh1+ 26. Rxh1 {[%emt 0:00:00]} 1-0